fUSD/lending_fUSD_20260226
["ID","MTS","AMOUNT","RATE_DAILY","PERIOD"]
[406726067,1772122255120,-150.0,0.00017995,2]
[406726068,1772122255131,-150.0,0.00017995,2]
[406726069,1772122255141,-150.0,0.00017995,2]
[406726070,1772122255150,-150.0,0.00017995,2]
[406726071,1772122255159,-150.0,0.00017995,2]
[406726072,1772122255168,-187.29970089,0.00017996,2]
[406726073,1772122255178,-339.21457322,0.00017996,2]
[406726074,1772122255187,-156.66979557,0.00017996,2]
[406726075,1772122255196,-150.0,0.00017996,2]
[406726076,1772122255206,-187.29970089,0.00017997,2]
[406726077,1772122255217,-339.21457322,0.00017997,2]
[406726078,1772122255227,-156.66979557,0.00017997,2]
[406726079,1772122255239,-150.0,0.00017997,2]
[406726080,1772122255249,-150.0,0.00017997,2]
[406726081,1772122255258,-151.0,0.00017997,2]
[406726082,1772122255268,-150.0,0.00017997,2]
[406726083,1772122255277,-187.29970089,0.00017998,2]
[406726084,1772122255288,-339.21457322,0.00017998,2]
[406726085,1772122255298,-156.66979557,0.00017998,2]
[406726086,1772122255312,-150.0,0.00017998,2]
[406726087,1772122255332,-150.0,0.00017998,2]
[406726088,1772122255349,-187.29970089,0.00017999,2]
[406726089,1772122255370,-339.21457322,0.00017999,2]
[406726090,1772122255385,-156.66979557,0.00017999,2]
[406726091,1772122255402,-391.644255,0.00017999,2]
[406726092,1772122255421,-10987.06003046,0.00017999,2]
[406726093,1772122255440,-5800.0,0.00017999,2]
[406726094,1772122255460,-13140.49262267,0.00017999,2]
[406726095,1772122255479,-500.0,0.00017999,21]
[406726096,1772122255500,-500.0,0.00017999,21]
[406726097,1772122255518,-500.0,0.00017999,21]
[406726098,1772122255532,-384.61162915,0.00017999,21]
[406726099,1772122255551,-150.0,0.00017999,2]
[406726100,1772122255563,-155.07011647,0.00017999,2]
[406726101,1772122255580,-984503.34360969,0.00018,2]
[406726102,1772122256214,-27388.00118479,0.00018,2]
[406726103,1772122256295,-196.32932638,0.0001601,2]
[406726104,1772122256304,-413.0,0.00017201,2]
[406726105,1772122256315,-1792.67067361,0.00018,2]
[406726106,1772122256327,-55274.62457742,0.00018,2]
[406726107,1772122256338,-30924.66274781,0.00018,2]
[406726108,1772122256414,-819.26990453,0.00018,2]
[406726109,1772122445670,151.0,6.523e-05,2]
[406726113,1772122501618,539.0,6.525e-05,2]
[406726116,1772122507627,498.0144177,6.525e-05,2]
[406726117,1772122521318,500.0,6.525e-05,2]
[406726118,1772122521384,417.97748932,6.525e-05,2]
[406726119,1772122532728,225.36767213,6.525e-05,2]
[406726120,1772122610049,272.52,6.5e-05,2]
[406726438,1772123374640,150.0,0.00011233,120]
[406726446,1772123431685,-163.51,6.6e-05,2]
[406726447,1772123431696,-300.0,6.666e-05,2]
[406726448,1772123431706,-300.0,6.972e-05,2]
[406726449,1772123431715,-76.77167407,6.972e-05,2]
[406726450,1772123431757,-223.22832593,6.972e-05,2]
[406726451,1772123431767,-250.0,7.26e-05,2]
[406726452,1772123431777,-65.84596351,7.26e-05,2]
[406726453,1772123431830,-234.15403649,7.26e-05,2]
[406726454,1772123431839,-264.45413062,7.26e-05,2]
[406726455,1772123431851,-50.75256935,7.26e-05,2]
[406726456,1772123431861,-300.0,7.26e-05,2]
[406726457,1772123431870,-155.35,7.417e-05,2]
[406726458,1772123431880,-602.14,8.752e-05,2]
[406726459,1772123431890,-3921.74,8.822e-05,2]
[406726460,1772123431899,-965.74,9.146e-05,2]
[406726461,1772123431909,-177.293163,9.336e-05,2]
[406726462,1772123431918,-219.0,9.337e-05,2]
[406726463,1772123431928,-501.0,9.546e-05,2]
[406726464,1772123431938,-2500.0,9.581e-05,2]
[406726465,1772123431947,-1100.0,9.6e-05,3]
[406726466,1772123431956,-754.0,9.64e-05,2]
[406726467,1772123431966,-208.88429413,9.653e-05,2]
[406726468,1772123431975,-575.0,9.659e-05,2]
[406726469,1772123431985,-241.0,9.679e-05,2]
[406726470,1772123431994,-348.61009239,9.68e-05,2]
[406726471,1772123432004,-500.0,9.68e-05,2]
[406726472,1772123432013,-157.75737049,9.68e-05,2]
[406726473,1772123432022,-500.0,9.68e-05,2]
[406726474,1772123432032,-500.0,9.68e-05,2]
[406726475,1772123432041,-500.0,9.68e-05,2]
[406726476,1772123432051,-500.0,9.68e-05,2]
[406726478,1772123432060,-500.0,9.68e-05,2]
[406726479,1772123432070,-500.0,9.68e-05,2]
[406726480,1772123432079,-500.0,9.68e-05,2]
[406726481,1772123432089,-390.63356869,9.68e-05,2]
[406726482,1772123432098,-500.0,9.68e-05,2]
[406726483,1772123432107,-500.0,9.68e-05,2]
[406726484,1772123432117,-500.0,9.68e-05,2]
[406726485,1772123432126,-274.55724372,9.68e-05,2]
[406726486,1772123432136,-343.83,9.68e-05,2]
[406726487,1772123432145,-38685.032626,9.681e-05,2]
[406726488,1772123432161,-699.49483532,9.681e-05,2]
[406726489,1772123432173,-402.45784403,9.681e-05,2]
[406726518,1772123438274,-1029.20410156,9.681e-05,2]
[406726519,1772123438433,-1188.74622491,9.681e-05,2]
[406726520,1772123438443,-321.535,9.681e-05,2]
[406726521,1772123438454,-346.22909034,9.681e-05,2]
[406726522,1772123438470,-1957327.30027784,9.681e-05,2]
[406726523,1772123438479,-4133.1798,9.681e-05,2]
[406726524,1772123438488,-89535.6773,9.681e-05,2]
[406726525,1772123438497,-1295816.58159749,9.681e-05,2]
[406726526,1772123438508,-1349.90711029,9.681e-05,2]
[406726527,1772123438616,-3478.75,9.681e-05,2]
[406726531,1772123440121,-715.69514905,9.681e-05,2]
[406726532,1772123440133,-198639.06614317,9.681e-05,2]
[406726533,1772123440144,-454.3546,9.681e-05,2]
[406726534,1772123440154,-937.0,9.698e-05,2]
[406726535,1772123440164,-2300.0,9.7e-05,3]
[406726536,1772123440173,-465.0,9.717e-05,2]
[406726537,1772123440183,-162.43895648,9.726e-05,2]
[406726538,1772123440194,-1697.0,9.736e-05,2]
[406726539,1772123440204,-1814.0,9.756e-05,2]
[406726540,1772123440216,-284.0,9.775e-05,2]
[406726541,1772123440225,-69461.8304039,9.781e-05,7]
[406726542,1772123440234,-1793.0,9.794e-05,2]
[406726543,1772123440244,-3400.0,9.8e-05,3]
[406726544,1772123440253,-500.0,9.8e-05,2]
[406726545,1772123440262,-563.0,9.808e-05,2]
[406726546,1772123440272,-4600.0,9.9e-05,3]
[406726547,1772123440281,-343.83,9.954e-05,2]
[406726548,1772123440292,-500.0,0.0001,2]
[406726549,1772123440301,-500.0,0.0001,2]
[406726550,1772123440310,-500.0,0.0001,2]
[406726551,1772123440320,-500.0,0.0001,2]
[406726552,1772123440330,-500.0,0.0001,2]
[406726553,1772123440339,-500.0,0.0001,2]
[406726554,1772123440349,-500.0,0.0001,2]
[406726555,1772123440359,-286.03470972,0.0001,2]
[406726556,1772123440369,-500.0,0.0001,2]
[406726557,1772123440379,-500.0,0.0001,2]
[406726558,1772123440388,-500.0,0.0001,2]
[406726559,1772123440398,-500.0,0.0001,2]
[406726560,1772123440408,-500.0,0.0001,2]
[406726561,1772123440418,-500.0,0.0001,2]
[406726562,1772123440430,-500.0,0.0001,2]
[406726563,1772123440440,-151.0,0.0001,2]
[406726564,1772123440450,-500.0,0.0001,2]
[406726565,1772123440461,-500.0,0.0001,2]
[406726566,1772123440471,-151.0,0.0001,2]
[406726567,1772123440480,-553.9571256,0.0001,2]
[406726568,1772123440490,-151.0,0.0001,2]
[406726569,1772123440500,-151.0,0.0001,2]
[406726570,1772123440510,-151.0,0.0001,2]
[406726571,1772123440520,-151.0,0.0001,2]
[406726572,1772123440531,-200.0,0.0001,2]
[406726573,1772123440542,-151.0,0.0001,2]
[406726574,1772123440554,-151.0,0.0001,2]
[406726575,1772123440563,-151.0,0.0001,2]
[406726576,1772123440576,-151.0,0.0001,2]
[406726577,1772123440585,-151.0,0.0001,2]
[406726578,1772123440597,-151.0,0.0001,2]
[406726579,1772123440607,-151.0,0.0001,2]
[406726580,1772123440617,-151.0,0.0001,2]
[406726581,1772123440626,-151.0,0.0001,2]
[406726582,1772123440636,-151.0,0.0001,2]
[406726583,1772123440647,-151.0,0.0001,2]
[406726584,1772123440657,-151.0,0.0001,2]
[406726585,1772123440667,-151.0,0.0001,2]
[406726587,1772123440676,-151.0,0.0001,2]
[406726588,1772123440685,-151.0,0.0001,2]
[406726589,1772123440695,-151.0,0.0001,2]
[406726590,1772123440705,-151.0,0.0001,2]
[406726591,1772123440715,-151.0,0.0001,2]
[406726592,1772123440725,-151.0,0.0001,2]
[406726593,1772123440735,-5700.0,0.0001,3]
[406726594,1772123440744,-151.0,0.0001,2]
[406726595,1772123440754,-151.0,0.0001,2]
[406726596,1772123440764,-151.0,0.0001,2]
[406726597,1772123440774,-151.0,0.0001,2]
[406726598,1772123440783,-151.0,0.0001,2]
[406726599,1772123440793,-151.0,0.0001,2]
[406726600,1772123440802,-151.0,0.0001,2]
[406726601,1772123440812,-151.0,0.0001,2]
[406726602,1772123440822,-151.0,0.0001,2]
[406726603,1772123440832,-151.0,0.0001,2]
[406726604,1772123440842,-1186.11241235,0.0001,2]
[406726605,1772123440851,-151.0,0.0001,2]
[406726606,1772123440860,-151.0,0.0001,2]
[406726607,1772123440870,-151.0,0.0001,2]
[406726608,1772123440880,-151.0,0.0001,2]
[406726609,1772123440890,-151.0,0.0001,2]
[406726610,1772123440900,-151.0,0.0001,2]
[406726611,1772123440909,-151.0,0.0001,2]
[406726612,1772123440919,-151.0,0.0001,2]
[406726613,1772123440929,-151.0,0.0001,2]
[406726614,1772123440938,-151.0,0.0001,2]
[406726615,1772123440948,-151.0,0.0001,2]
[406726616,1772123440958,-151.0,0.0001,2]
[406726617,1772123440968,-151.0,0.0001,2]
[406726618,1772123440977,-151.0,0.0001,2]
[406726619,1772123440986,-151.0,0.0001,2]
[406726620,1772123440996,-151.0,0.0001,2]
[406726621,1772123441005,-1070.62307231,0.0001,2]
[406726622,1772123441014,-1070.62307231,0.0001,2]
[406726623,1772123441024,-343.83,0.00010228,2]
[406726624,1772123441033,-500.0,0.000103,2]
[406726625,1772123441043,-500.0,0.000103,2]
[406726626,1772123441052,-500.0,0.000103,2]
[406726627,1772123441062,-502.3554838,0.000103,2]
[406726628,1772123441071,-500.0,0.000103,2]
[406726629,1772123441083,-500.0,0.000103,2]
[406726630,1772123441093,-500.0,0.000103,2]
[406726631,1772123441103,-507.0718689,0.000103,2]
[406726632,1772123441114,-900.0,0.000103,2]
[406726633,1772123441124,-900.0,0.000103,2]
[406726634,1772123441133,-1200.0,0.000103,2]
[406726635,1772123441142,-600.0,0.000103,2]
[406726636,1772123441152,-1200.0,0.000103,2]
[406726637,1772123441161,-900.0,0.000103,2]
[406726638,1772123441171,-600.0,0.000103,2]
[406726639,1772123441181,-1200.0,0.000103,2]
[406726640,1772123441190,-900.0,0.000103,2]
[406726641,1772123441200,-600.0,0.000103,2]
[406726642,1772123441210,-1200.0,0.000103,2]
[406726643,1772123441220,-900.0,0.000103,2]
[406726644,1772123441230,-600.0,0.000103,2]
[406726645,1772123441239,-900.0,0.000103,2]
[406726646,1772123441248,-501.0074181,0.000103,2]
[406726647,1772123441257,-600.0,0.000103,2]
[406726648,1772123441267,-500.0,0.000103,2]
[406726649,1772123441276,-900.0,0.000103,2]
[406726650,1772123441286,-1200.0,0.000103,2]
[406726651,1772123441295,-500.0,0.000103,2]
[406726652,1772123441304,-600.0,0.000103,2]
[406726653,1772123441314,-900.0,0.000103,2]
[406726654,1772123441323,-1200.0,0.000103,2]
[406726655,1772123441333,-500.0,0.000103,2]
[406726656,1772123441343,-500.0,0.000103,2]
[406726657,1772123441353,-900.0,0.000103,2]
[406726658,1772123441363,-1200.0,0.000103,2]
[406726659,1772123441372,-500.0,0.000103,2]
[406726660,1772123441382,-500.0,0.000103,2]
[406726661,1772123441391,-900.0,0.000103,2]
[406726662,1772123441400,-1200.0,0.000103,2]
[406726663,1772123441410,-526.98589059,0.000103,2]
[406726664,1772123441419,-500.0,0.000103,2]
[406726665,1772123441429,-900.0,0.000103,2]
[406726666,1772123441441,-1200.0,0.000103,2]
[406726667,1772123441450,-900.0,0.000103,2]
[406726668,1772123441461,-1200.0,0.000103,2]
[406726669,1772123441471,-900.0,0.000103,2]
[406726670,1772123441480,-1200.0,0.000103,2]
[406726671,1772123441490,-1100.0,0.000103,2]
[406726672,1772123441500,-500.0,0.000103,2]
[406726673,1772123441509,-1725.96679237,0.000103,2]
[406726674,1772123441519,-1200.0,0.000103,2]
[406726675,1772123441528,-600.0,0.000103,2]
[406726676,1772123441538,-500.0,0.000103,2]
[406726677,1772123441548,-1100.0,0.000103,2]
[406726678,1772123441557,-1200.0,0.000103,2]
[406726679,1772123441570,-600.0,0.000103,2]
[406726680,1772123441580,-1100.0,0.000103,2]
[406726681,1772123441590,-500.0,0.000103,2]
[406726682,1772123441599,-2271.31934016,0.000103,2]
[406726683,1772123441611,-600.0,0.000103,2]
[406726684,1772123441620,-1100.0,0.000103,2]
[406726685,1772123441630,-600.0,0.000103,2]
[406726686,1772123441641,-1100.0,0.000103,2]
[406726687,1772123441651,-500.0,0.000103,2]
[406726688,1772123441661,-600.0,0.000103,2]
[406726689,1772123441671,-1100.0,0.000103,2]
[406726690,1772123441680,-500.0,0.000103,2]
[406726691,1772123441690,-600.0,0.000103,2]
[406726692,1772123441699,-1100.0,0.000103,2]
[406726693,1772123441715,-500.0,0.000103,2]
[406726694,1772123441724,-1100.0,0.000103,2]
[406726695,1772123441735,-500.0,0.000103,2]
[406726696,1772123441744,-600.0,0.000103,2]
[406726697,1772123441754,-1100.0,0.000103,2]
[406726698,1772123441764,-500.0,0.000103,2]
[406726699,1772123441773,-557.04324665,0.000103,2]
[406726700,1772123441783,-1074.11423967,0.000103,2]
[406726701,1772123441792,-1100.0,0.000103,2]
[406726702,1772123441802,-500.0,0.000103,2]
[406726703,1772123441812,-1100.0,0.000103,2]
[406726704,1772123441821,-500.0,0.000103,2]
[406726705,1772123441831,-1100.0,0.000103,2]
[406726706,1772123441841,-500.0,0.000103,2]
[406726707,1772123441850,-500.0,0.000103,2]
[406726708,1772123441860,-1100.0,0.000103,2]
[406726709,1772123441870,-500.0,0.000103,2]
[406726710,1772123441879,-500.0,0.000103,2]
[406726711,1772123441889,-500.0,0.000103,2]
[406726712,1772123441900,-2197.24899589,0.000103,2]
[406726713,1772123441910,-500.0,0.000103,2]
[406726714,1772123441921,-500.0,0.000103,2]
[406726715,1772123441930,-500.0,0.000103,2]
[406726716,1772123441940,-500.0,0.000103,2]
[406726717,1772123441950,-500.0,0.000103,2]
[406726718,1772123441961,-500.0,0.000103,2]
[406726719,1772123441980,-500.0,0.000103,2]
[406726720,1772123441991,-500.0,0.000103,2]
[406726721,1772123442000,-500.0,0.000103,2]
[406726722,1772123442010,-500.0,0.000103,2]
[406726723,1772123442021,-860.86736991,0.000103,2]
[406726724,1772123442032,-500.0,0.000103,2]
[406726725,1772123442041,-500.0,0.000103,2]
[406726726,1772123442052,-500.0,0.000103,2]
[406726727,1772123442062,-500.0,0.000103,2]
[406726728,1772123442230,-500.0,0.000103,2]
[406726729,1772123442240,-500.0,0.000103,2]
[406726730,1772123442250,-500.0,0.000103,2]
[406726731,1772123442259,-500.0,0.000103,2]
[406726732,1772123442269,-500.0,0.000103,2]
[406726733,1772123442279,-500.0,0.000103,2]
[406726734,1772123442289,-500.0,0.000103,2]
[406726735,1772123442299,-500.0,0.000103,2]
[406726736,1772123442308,-500.0,0.000103,2]
[406726737,1772123442318,-508.47234762,0.000103,2]
[406726738,1772123442328,-500.0,0.000103,2]
[406726739,1772123442338,-500.0,0.000103,2]
[406726740,1772123442349,-500.0,0.000103,2]
[406726741,1772123442359,-500.0,0.000103,2]
[406726742,1772123442369,-510.5569704,0.000103,2]
[406726743,1772123442378,-500.0,0.000103,2]
[406726744,1772123442388,-500.0,0.000103,2]
[406726745,1772123442397,-500.0,0.000103,2]
[406726746,1772123442407,-500.0,0.000103,2]
[406726747,1772123442418,-500.0,0.000103,2]
[406726748,1772123442429,-500.0,0.000103,2]
[406726749,1772123442439,-749.25545367,0.000103,2]
[406726750,1772123442448,-500.0,0.000103,2]
[406726751,1772123442458,-500.0,0.000103,2]
[406726752,1772123442470,-500.0,0.000103,2]
[406726753,1772123442479,-500.0,0.000103,2]
[406726754,1772123442490,-500.0,0.000103,2]
[406726755,1772123442500,-585.91467153,0.000103,2]
[406726756,1772123442510,-500.0,0.000103,2]
[406726757,1772123442520,-500.0,0.000103,2]
[406726758,1772123442535,-500.0,0.000103,2]
[406726759,1772123442552,-500.0,0.000103,2]
[406726760,1772123442564,-600.0,0.000103,2]
[406726761,1772123442576,-500.0,0.000103,2]
[406726762,1772123442586,-500.0,0.000103,2]
[406726763,1772123442597,-500.0,0.000103,2]
[406726764,1772123442606,-343.83,0.00010502,2]
[406726765,1772123442617,-343.83776369,0.00010776,2]
[406726766,1772123442627,-175.26,0.000108,2]
[406726768,1772123442637,-500.53906536,0.00010829,2]
[406726770,1772123442649,-500.28462042,0.00010829,2]
[406726771,1772123442659,-501.35484447,0.00010829,2]
[406726772,1772123442668,-158.6599059,0.00010829,2]
[406726773,1772123442678,-502.2030619,0.00010829,2]
[406726775,1772123442692,-503.76454866,0.00010829,2]
[406726777,1772123442702,-500.0,0.00010829,2]
[406726778,1772123442712,-500.0,0.00010829,2]
[406726779,1772123442722,-500.72325527,0.00010829,2]
[406726780,1772123442732,-500.0,0.00010829,2]
[406726781,1772123442742,-500.0,0.00010829,2]
[406726782,1772123442751,-500.0,0.00010829,2]
[406726783,1772123442760,-500.0,0.00010829,2]
[406726784,1772123442770,-150.0,0.00010959,2]
[406726785,1772123442780,-1000.0,0.00010999,2]
[406726787,1772123442790,-32883.6844,0.00010999,2]
[406726788,1772123442800,-27067.80659471,0.00011099,2]
[406726789,1772123442810,-27067.80659463,0.00011099,2]
[406726790,1772123442820,-28385.0,0.000112,2]
[406726791,1772123442829,-221.616453,0.00011203,2]
[406726792,1772123442839,-150.0,0.00011233,2]
[406726793,1772123442849,-5771.18,0.00011233,2]
[406726794,1772123442859,-1000.0,0.00011377,2]
[406726795,1772123442869,-513.39301398,0.00011377,2]
[406726796,1772123442879,-1000.0,0.00011377,2]
[406726797,1772123442892,-1000.0,0.00011377,2]
[406726798,1772123442902,-1000.0,0.00011377,2]
[406726799,1772123442912,-27067.80659463,0.00011429,2]
[406726800,1772123442922,-5531.0,0.000116,3]
[406726801,1772123442932,-1008.26998517,0.00011924,2]
[406726802,1772123442942,-1500.0,0.00011924,2]
[406726803,1772123442952,-501.85175183,0.00011924,2]
[406726804,1772123442962,-200.09788063,0.00011924,2]
[406726805,1772123442972,-5531.0,0.00012,5]
[406726806,1772123442985,-150.0,0.00012047,2]
[406726807,1772123442995,-150.0,0.00012047,2]
[406726808,1772123443006,-150.0,0.00012047,2]
[406726809,1772123443015,-150.0,0.00012102,2]
[406726810,1772123443025,-27067.80659463,0.00012354,2]
[406726811,1772123443035,-2000.0,0.00012472,2]
[406726812,1772123443045,-1277.0,0.00012501,2]
[406726813,1772123443054,-1211.0,0.00012501,2]
[406726814,1772123443064,-920.0,0.00012501,2]
[406726815,1772123443074,-2456.0,0.00012501,2]
[406726816,1772123443088,-1041.0,0.00012501,2]
[406726817,1772123443098,-9999.99,0.00012893,2]
[406726818,1772123443107,-150.99,0.00012893,2]
[406726819,1772123443118,-381.71,0.00012893,2]
[406726820,1772123443128,-9999.99,0.00012893,2]
[406726821,1772123443137,-299.99,0.00012893,2]
[406726822,1772123443147,-173.95657067,0.00012981,2]
[406726823,1772123443157,-160.0,0.00012981,2]
[406726824,1772123443167,-2500.0,0.0001302,2]
[406726825,1772123443178,-500.0,0.0001312,2]
[406726826,1772123443188,-500.0,0.0001312,2]
[406726827,1772123443197,-500.0,0.0001312,2]
[406726829,1772123443208,-1200.0,0.0001312,2]
[406726831,1772123443219,-900.0,0.0001312,2]
[406726833,1772123443229,-500.76827377,0.0001312,2]
[406726835,1772123443239,-500.0,0.0001312,2]
[406726837,1772123443249,-173.7910009,0.0001312,2]
[406726839,1772123443259,-500.0,0.0001312,2]
[406726841,1772123443269,-1200.0,0.0001312,2]
[406726843,1772123443278,-600.0,0.0001312,2]
[406726845,1772123443290,-900.0,0.0001312,2]
[406726847,1772123443300,-226.12454466,0.0001312,2]
[406726849,1772123443310,-500.0,0.0001312,2]
[406726851,1772123443320,-500.0,0.0001312,2]
[406726853,1772123443330,-600.0,0.0001312,2]
[406726855,1772123443340,-1200.0,0.0001312,2]
[406726857,1772123443349,-900.0,0.0001312,2]
[406726858,1772123443359,-500.0,0.0001312,2]
[406726859,1772123443369,-600.0,0.0001312,2]
[406726860,1772123443380,-1200.0,0.0001312,2]
[406726861,1772123443390,-900.0,0.0001312,2]
[406726862,1772123443400,-600.0,0.0001312,2]
[406726863,1772123443410,-1200.0,0.0001312,2]
[406726864,1772123443420,-900.0,0.0001312,2]
[406726865,1772123443431,-600.0,0.0001312,2]
[406726866,1772123443440,-1200.0,0.0001312,2]
[406726867,1772123443450,-900.0,0.0001312,2]
[406726868,1772123443460,-600.0,0.0001312,2]
[406726869,1772123443469,-1200.0,0.0001312,2]
[406726870,1772123443482,-900.0,0.0001312,2]
[406726871,1772123443491,-600.0,0.0001312,2]
[406726872,1772123443501,-1200.0,0.0001312,2]
[406726873,1772123443511,-900.0,0.0001312,2]
[406726874,1772123443521,-600.0,0.0001312,2]
[406726875,1772123443531,-1200.0,0.0001312,2]
[406726876,1772123443541,-900.0,0.0001312,2]
[406726877,1772123443551,-600.0,0.0001312,2]
[406726878,1772123443563,-900.0,0.0001312,2]
[406726879,1772123443574,-1200.0,0.0001312,2]
[406726880,1772123443583,-600.0,0.0001312,2]
[406726881,1772123443593,-900.0,0.0001312,2]
[406726882,1772123443603,-1200.0,0.0001312,2]
[406726883,1772123443614,-500.0,0.0001312,2]
[406726884,1772123443624,-600.0,0.0001312,2]
[406726885,1772123443634,-150.25022043,0.0001312,2]
[406726886,1772123443645,-900.0,0.0001312,2]
[406726887,1772123443656,-1200.0,0.0001312,2]
[406726888,1772123443666,-500.0,0.0001312,2]
[406726889,1772123443676,-600.0,0.0001312,2]
[406726890,1772123443688,-900.0,0.0001312,2]
[406726891,1772123443697,-1100.0,0.0001312,2]
[406726892,1772123443708,-1200.0,0.0001312,2]
[406726893,1772123443719,-500.0,0.0001312,2]
[406726894,1772123443729,-600.0,0.0001312,2]
[406726895,1772123443739,-900.0,0.0001312,2]
[406726896,1772123443749,-1100.0,0.0001312,2]
[406726897,1772123443759,-1200.0,0.0001312,2]
[406726898,1772123443771,-500.0,0.0001312,2]
[406726899,1772123443782,-600.0,0.0001312,2]
[406726900,1772123443792,-1100.0,0.0001312,2]
[406726901,1772123443802,-1200.0,0.0001312,2]
[406726902,1772123443811,-500.0,0.0001312,2]
[406726903,1772123443821,-600.0,0.0001312,2]
[406726904,1772123443831,-1100.0,0.0001312,2]
[406726905,1772123443841,-500.0,0.0001312,2]
[406726906,1772123443851,-1100.0,0.0001312,2]
[406726907,1772123443861,-500.0,0.0001312,2]
[406726908,1772123443871,-1100.0,0.0001312,2]
[406726909,1772123443881,-500.0,0.0001312,2]
[406726910,1772123443891,-1100.0,0.0001312,2]
[406726911,1772123443901,-500.0,0.0001312,2]
[406726912,1772123443911,-500.0,0.0001312,2]
[406726913,1772123443920,-1100.0,0.0001312,2]
[406726914,1772123443930,-500.0,0.0001312,2]
[406726915,1772123443939,-500.0,0.0001312,2]
[406726916,1772123443950,-1100.0,0.0001312,2]
[406726917,1772123443959,-500.0,0.0001312,2]
[406726918,1772123443970,-1100.0,0.0001312,2]
[406726919,1772123443979,-500.0,0.0001312,2]
[406726920,1772123443989,-1100.0,0.0001312,2]
[406726921,1772123443999,-1100.0,0.0001312,2]
[406726922,1772123444008,-1100.0,0.0001312,2]
[406726923,1772123444019,-500.0,0.0001312,2]
[406726924,1772123444029,-1100.0,0.0001312,2]
[406726925,1772123444039,-500.0,0.0001312,2]
[406726926,1772123444048,-1100.0,0.0001312,2]
[406726927,1772123444058,-500.0,0.0001312,2]
[406726928,1772123444074,-500.0,0.0001312,2]
[406726929,1772123444088,-500.0,0.0001312,2]
[406726930,1772123444098,-502.38608045,0.0001312,2]
[406726931,1772123444109,-500.0,0.0001312,2]
[406726932,1772123444119,-500.0,0.0001312,2]
[406726933,1772123444129,-500.0,0.0001312,2]
[406726934,1772123444139,-500.0,0.0001312,2]
[406726935,1772123444149,-500.0,0.0001312,2]
[406726936,1772123444159,-500.0,0.0001312,2]
[406726937,1772123444169,-500.0,0.0001312,2]
[406726938,1772123444179,-500.0,0.0001312,2]
[406726939,1772123444189,-500.0,0.0001312,2]
[406726940,1772123444199,-500.0,0.0001312,2]
[406726941,1772123444208,-853.76768935,0.0001312,2]
[406726942,1772123444218,-500.0,0.0001312,2]
[406726943,1772123444228,-500.0,0.0001312,2]
[406726944,1772123444238,-500.0,0.0001312,2]
[406726945,1772123444248,-500.0,0.0001312,2]
[406726946,1772123444258,-500.0,0.0001312,2]
[406726947,1772123444267,-500.0,0.0001312,2]
[406726948,1772123444277,-500.0,0.0001312,2]